{"text_format":"3","workbook":"xlsx","n_sheets":2,"sheets":["متعقب المشروع","إعداد"],"not_rendered":{"defined_names":6},"read":"whole","date_system":"1900"}

{"sheet":"متعقب المشروع","index":0,"n_rows":13,"n_cols":15,"rows_kept":13}
[null,"متعقب المشروع"]
[null,null,"النسبة المئوية أعلى/أسفل العلامة: ",{"v":0.25,"d":"25%"}]
[]
[null,"المشروع","الفئة","معيّن إلى","مُقدر\nالبدء","مُقدر \nالإنهاء","العمل المُقدر (بالساعات)","المدة المقدرة (بالأيام)","الفعلي \nالبدء","الفعلي\nالإنهاء","أيقونة العلامة لأعلى/أسفل العمل المقدر (بالساعات)","العمل الفعلي (بالساعات)","أيقونة العلامة لأعلى/أسفل المدة الفعلية (بالأيام)","المدة الفعلية (بالأيام)","الملاحظات"]
[null,"المشروع 1","الفئة 1","الموظف 1",{"$f":"TODAY()-65","v":"2016-08-15"},{"$f":"TODAY()-5","v":"2016-10-14"},210,{"$f":"IF(COUNTA('متعقب المشروع'!$E5,'متعقب المشروع'!$F5)<>2,\"\",DAYS360('متعقب المشروع'!$E5,'متعقب المشروع'!$F5,FALSE))","v":59},{"$f":"TODAY()-65","v":"2016-08-15"},{"$f":"TODAY()","v":"2016-10-19"},{"$f":"IFERROR(IF(متعقب_المشروع[العمل الفعلي (بالساعات)]=0,\"\",IF(ABS((متعقب_المشروع[[#This Row],[العمل الفعلي (بالساعات)]]-متعقب_المشروع[[#This Row],[العمل المُقدر (بالساعات)]])/متعقب_المشروع[[#This Row],[العمل المُقدر (بالساعات)]])>FlagPercent,1,0)),\"\")","v":1},300,{"$f":"IFERROR(IF(متعقب_المشروع[المدة الفعلية (بالأيام)]=0,\"\",IF(ABS((متعقب_المشروع[[#This Row],[المدة الفعلية (بالأيام)]]-متعقب_المشروع[[#This Row],[المدة المقدرة (بالأيام)]])/متعقب_المشروع[[#This Row],[المدة المقدرة (بالأيام)]])>FlagPercent,1,0)),\"\")","v":0},{"$f":"IF(COUNTA('متعقب المشروع'!$I5,'متعقب المشروع'!$J5)<>2,\"\",DAYS360('متعقب المشروع'!$I5,'متعقب المشروع'!$J5,FALSE))","v":64}]
[null,"المشروع 2","الفئة 2","الموظف 4",{"$f":"TODAY()-41","v":"2016-09-08"},{"$f":"TODAY()-10","v":"2016-10-09"},400,{"$f":"IF(COUNTA('متعقب المشروع'!$E6,'متعقب المشروع'!$F6)<>2,\"\",DAYS360('متعقب المشروع'!$E6,'متعقب المشروع'!$F6,FALSE))","v":31},{"$f":"TODAY()-41","v":"2016-09-08"},{"$f":"TODAY()-7","v":"2016-10-12"},{"$f":"IFERROR(IF(متعقب_المشروع[العمل الفعلي (بالساعات)]=0,\"\",IF(ABS((متعقب_المشروع[[#This Row],[العمل الفعلي (بالساعات)]]-متعقب_المشروع[[#This Row],[العمل المُقدر (بالساعات)]])/متعقب_المشروع[[#This Row],[العمل المُقدر (بالساعات)]])>FlagPercent,1,0)),\"\")","v":0},390,{"$f":"IFERROR(IF(متعقب_المشروع[المدة الفعلية (بالأيام)]=0,\"\",IF(ABS((متعقب_المشروع[[#This Row],[المدة الفعلية (بالأيام)]]-متعقب_المشروع[[#This Row],[المدة المقدرة (بالأيام)]])/متعقب_المشروع[[#This Row],[المدة المقدرة (بالأيام)]])>FlagPercent,1,0)),\"\")","v":0},{"$f":"IF(COUNTA('متعقب المشروع'!$I6,'متعقب المشروع'!$J6)<>2,\"\",DAYS360('متعقب المشروع'!$I6,'متعقب المشروع'!$J6,FALSE))","v":34}]
[null,"المشروع 3","الفئة 1","الموظف 2",{"$f":"TODAY()-100","v":"2016-07-11"},{"$f":"TODAY()-40","v":"2016-09-09"},500,{"$f":"IF(COUNTA('متعقب المشروع'!$E7,'متعقب المشروع'!$F7)<>2,\"\",DAYS360('متعقب المشروع'!$E7,'متعقب المشروع'!$F7,FALSE))","v":58},{"$f":"TODAY()-100","v":"2016-07-11"},{"$f":"TODAY()-27","v":"2016-09-22"},{"$f":"IFERROR(IF(متعقب_المشروع[العمل الفعلي (بالساعات)]=0,\"\",IF(ABS((متعقب_المشروع[[#This Row],[العمل الفعلي (بالساعات)]]-متعقب_المشروع[[#This Row],[العمل المُقدر (بالساعات)]])/متعقب_المشروع[[#This Row],[العمل المُقدر (بالساعات)]])>FlagPercent,1,0)),\"\")","v":0},500,{"$f":"IFERROR(IF(متعقب_المشروع[المدة الفعلية (بالأيام)]=0,\"\",IF(ABS((متعقب_المشروع[[#This Row],[المدة الفعلية (بالأيام)]]-متعقب_المشروع[[#This Row],[المدة المقدرة (بالأيام)]])/متعقب_المشروع[[#This Row],[المدة المقدرة (بالأيام)]])>FlagPercent,1,0)),\"\")","v":0},{"$f":"IF(COUNTA('متعقب المشروع'!$I7,'متعقب المشروع'!$J7)<>2,\"\",DAYS360('متعقب المشروع'!$I7,'متعقب المشروع'!$J7,FALSE))","v":71}]
[null,"المشروع 4","الفئة 2","الموظف 3",{"$f":"TODAY()-90","v":"2016-07-21"},{"$f":"TODAY()-80","v":"2016-07-31"},250,{"$f":"IF(COUNTA('متعقب المشروع'!$E8,'متعقب المشروع'!$F8)<>2,\"\",DAYS360('متعقب المشروع'!$E8,'متعقب المشروع'!$F8,FALSE))","v":10},{"$f":"TODAY()-90","v":"2016-07-21"},{"$f":"TODAY()-71","v":"2016-08-09"},{"$f":"IFERROR(IF(متعقب_المشروع[العمل الفعلي (بالساعات)]=0,\"\",IF(ABS((متعقب_المشروع[[#This Row],[العمل الفعلي (بالساعات)]]-متعقب_المشروع[[#This Row],[العمل المُقدر (بالساعات)]])/متعقب_المشروع[[#This Row],[العمل المُقدر (بالساعات)]])>FlagPercent,1,0)),\"\")","v":0},276,{"$f":"IFERROR(IF(متعقب_المشروع[المدة الفعلية (بالأيام)]=0,\"\",IF(ABS((متعقب_المشروع[[#This Row],[المدة الفعلية (بالأيام)]]-متعقب_المشروع[[#This Row],[المدة المقدرة (بالأيام)]])/متعقب_المشروع[[#This Row],[المدة المقدرة (بالأيام)]])>FlagPercent,1,0)),\"\")","v":1},{"$f":"IF(COUNTA('متعقب المشروع'!$I8,'متعقب المشروع'!$J8)<>2,\"\",DAYS360('متعقب المشروع'!$I8,'متعقب المشروع'!$J8,FALSE))","v":18}]
[null,"المشروع 5","الفئة 3","الموظف 2",{"$f":"TODAY()-90","v":"2016-07-21"},{"$f":"TODAY()-50","v":"2016-08-30"},300,{"$f":"IF(COUNTA('متعقب المشروع'!$E9,'متعقب المشروع'!$F9)<>2,\"\",DAYS360('متعقب المشروع'!$E9,'متعقب المشروع'!$F9,FALSE))","v":39},{"$f":"TODAY()-90","v":"2016-07-21"},{"$f":"TODAY()-44","v":"2016-09-05"},{"$f":"IFERROR(IF(متعقب_المشروع[العمل الفعلي (بالساعات)]=0,\"\",IF(ABS((متعقب_المشروع[[#This Row],[العمل الفعلي (بالساعات)]]-متعقب_المشروع[[#This Row],[العمل المُقدر (بالساعات)]])/متعقب_المشروع[[#This Row],[العمل المُقدر (بالساعات)]])>FlagPercent,1,0)),\"\")","v":0},310,{"$f":"IFERROR(IF(متعقب_المشروع[المدة الفعلية (بالأيام)]=0,\"\",IF(ABS((متعقب_المشروع[[#This Row],[المدة الفعلية (بالأيام)]]-متعقب_المشروع[[#This Row],[المدة المقدرة (بالأيام)]])/متعقب_المشروع[[#This Row],[المدة المقدرة (بالأيام)]])>FlagPercent,1,0)),\"\")","v":0},{"$f":"IF(COUNTA('متعقب المشروع'!$I9,'متعقب المشروع'!$J9)<>2,\"\",DAYS360('متعقب المشروع'!$I9,'متعقب المشروع'!$J9,FALSE))","v":44}]
[null,"المشروع 6","الفئة 4","الموظف 4",{"$f":"TODAY()-60","v":"2016-08-20"},{"$f":"TODAY()-50","v":"2016-08-30"},500,{"$f":"IF(COUNTA('متعقب المشروع'!$E10,'متعقب المشروع'!$F10)<>2,\"\",DAYS360('متعقب المشروع'!$E10,'متعقب المشروع'!$F10,FALSE))","v":10},{"$f":"TODAY()-60","v":"2016-08-20"},{"$f":"TODAY()-45","v":"2016-09-04"},{"$f":"IFERROR(IF(متعقب_المشروع[العمل الفعلي (بالساعات)]=0,\"\",IF(ABS((متعقب_المشروع[[#This Row],[العمل الفعلي (بالساعات)]]-متعقب_المشروع[[#This Row],[العمل المُقدر (بالساعات)]])/متعقب_المشروع[[#This Row],[العمل المُقدر (بالساعات)]])>FlagPercent,1,0)),\"\")","v":0},510,{"$f":"IFERROR(IF(متعقب_المشروع[المدة الفعلية (بالأيام)]=0,\"\",IF(ABS((متعقب_المشروع[[#This Row],[المدة الفعلية (بالأيام)]]-متعقب_المشروع[[#This Row],[المدة المقدرة (بالأيام)]])/متعقب_المشروع[[#This Row],[المدة المقدرة (بالأيام)]])>FlagPercent,1,0)),\"\")","v":1},{"$f":"IF(COUNTA('متعقب المشروع'!$I10,'متعقب المشروع'!$J10)<>2,\"\",DAYS360('متعقب المشروع'!$I10,'متعقب المشروع'!$J10,FALSE))","v":14}]
[null,"المشروع 7","الفئة 5","الموظف 1",{"$f":"TODAY()-44","v":"2016-09-05"},{"$f":"TODAY()-20","v":"2016-09-29"},750,{"$f":"IF(COUNTA('متعقب المشروع'!$E11,'متعقب المشروع'!$F11)<>2,\"\",DAYS360('متعقب المشروع'!$E11,'متعقب المشروع'!$F11,FALSE))","v":24},{"$f":"TODAY()-44","v":"2016-09-05"},{"$f":"TODAY()-15","v":"2016-10-04"},{"$f":"IFERROR(IF(متعقب_المشروع[العمل الفعلي (بالساعات)]=0,\"\",IF(ABS((متعقب_المشروع[[#This Row],[العمل الفعلي (بالساعات)]]-متعقب_المشروع[[#This Row],[العمل المُقدر (بالساعات)]])/متعقب_المشروع[[#This Row],[العمل المُقدر (بالساعات)]])>FlagPercent,1,0)),\"\")","v":0},790,{"$f":"IFERROR(IF(متعقب_المشروع[المدة الفعلية (بالأيام)]=0,\"\",IF(ABS((متعقب_المشروع[[#This Row],[المدة الفعلية (بالأيام)]]-متعقب_المشروع[[#This Row],[المدة المقدرة (بالأيام)]])/متعقب_المشروع[[#This Row],[المدة المقدرة (بالأيام)]])>FlagPercent,1,0)),\"\")","v":0},{"$f":"IF(COUNTA('متعقب المشروع'!$I11,'متعقب المشروع'!$J11)<>2,\"\",DAYS360('متعقب المشروع'!$I11,'متعقب المشروع'!$J11,FALSE))","v":29}]
[null,"المشروع 8","الفئة 2","الموظف 1",{"$f":"TODAY()-39","v":"2016-09-10"},{"$f":"TODAY()","v":"2016-10-19"},450,{"$f":"IF(COUNTA('متعقب المشروع'!$E12,'متعقب المشروع'!$F12)<>2,\"\",DAYS360('متعقب المشروع'!$E12,'متعقب المشروع'!$F12,FALSE))","v":39},{"$f":"TODAY()-45","v":"2016-09-04"},{"$f":"TODAY()-5","v":"2016-10-14"},{"$f":"IFERROR(IF(متعقب_المشروع[العمل الفعلي (بالساعات)]=0,\"\",IF(ABS((متعقب_المشروع[[#This Row],[العمل الفعلي (بالساعات)]]-متعقب_المشروع[[#This Row],[العمل المُقدر (بالساعات)]])/متعقب_المشروع[[#This Row],[العمل المُقدر (بالساعات)]])>FlagPercent,1,0)),\"\")","v":0},430,{"$f":"IFERROR(IF(متعقب_المشروع[المدة الفعلية (بالأيام)]=0,\"\",IF(ABS((متعقب_المشروع[[#This Row],[المدة الفعلية (بالأيام)]]-متعقب_المشروع[[#This Row],[المدة المقدرة (بالأيام)]])/متعقب_المشروع[[#This Row],[المدة المقدرة (بالأيام)]])>FlagPercent,1,0)),\"\")","v":0},{"$f":"IF(COUNTA('متعقب المشروع'!$I12,'متعقب المشروع'!$J12)<>2,\"\",DAYS360('متعقب المشروع'!$I12,'متعقب المشروع'!$J12,FALSE))","v":40}]
[null,"المشروع 9","الفئة 4","الموظف 1","2016-02-05","2016-06-09",250,{"$f":"IF(COUNTA('متعقب المشروع'!$E13,'متعقب المشروع'!$F13)<>2,\"\",DAYS360('متعقب المشروع'!$E13,'متعقب المشروع'!$F13,FALSE))","v":124},"2016-03-05","2016-05-05",{"$f":"IFERROR(IF(متعقب_المشروع[العمل الفعلي (بالساعات)]=0,\"\",IF(ABS((متعقب_المشروع[[#This Row],[العمل الفعلي (بالساعات)]]-متعقب_المشروع[[#This Row],[العمل المُقدر (بالساعات)]])/متعقب_المشروع[[#This Row],[العمل المُقدر (بالساعات)]])>FlagPercent,1,0)),\"\")","v":0},200,{"$f":"IFERROR(IF(متعقب_المشروع[المدة الفعلية (بالأيام)]=0,\"\",IF(ABS((متعقب_المشروع[[#This Row],[المدة الفعلية (بالأيام)]]-متعقب_المشروع[[#This Row],[المدة المقدرة (بالأيام)]])/متعقب_المشروع[[#This Row],[المدة المقدرة (بالأيام)]])>FlagPercent,1,0)),\"\")","v":1},{"$f":"IF(COUNTA('متعقب المشروع'!$I13,'متعقب المشروع'!$J13)<>2,\"\",DAYS360('متعقب المشروع'!$I13,'متعقب المشروع'!$J13,FALSE))","v":60}]

{"sheet":"إعداد","index":1,"n_rows":10,"n_cols":3,"rows_kept":10}
[null,"إعداد"]
[]
[]
[null,"اسم الفئة","اسم الموظف"]
[null,"الفئة 1","الموظف 1"]
[null,"الفئة 2","الموظف 2"]
[null,"الفئة 3","الموظف 3"]
[null,"الفئة 4","الموظف 4"]
[null,"الفئة 5","الموظف 5"]
[null,"الفئة 6","الموظف 6"]